bitfinex-derivatives/quotes_SOLF0:USTF0_20250928
["timestamp","ask_amount","ask_price","bid_price","bid_amount"]
[1759086686974,8.03,205.57,205.5,7.87]
[1759086687773,8.03,205.57,205.53,12.247]
[1759086687974,8.03,205.57,205.53,131.467]
[1759086688474,8.03,205.57,205.54,12.2468]
[1759086688668,2.53,205.56,205.54,12.2468]
[1759086689478,2.53,205.56,205.54,7.87]
[1759086689679,2.53,205.56,205.53,119.22]
[1759086689878,8.03,205.55,205.52,131.4074]
[1759086692876,2.53,205.56,205.52,119.16]
[1759086693382,2.53,205.56,205.55,12.2468]
[1759086693586,10.56,205.56,205.55,4.3768]
[1759086695886,10.56,205.56,205.53,4.3772]
[1759086696087,10.56,205.56,205.53,12.2472]
[1759086698584,8.03,205.55,205.53,4.3772]
[1759086698789,2.53,205.56,205.52,119.06]
[1759086699594,8.03,205.55,205.52,119.06]
[1759086699786,2.53,205.56,205.52,119.06]
[1759086700492,8.03,205.55,205.52,119.06]
[1759086700790,2.53,205.56,205.52,119.06]
[1759086701087,2.53,205.56,205.53,7.87]
[1759086701289,2.53,205.56,205.52,119.06]
[1759086701489,2.53,205.56,205.53,7.87]
[1759086701990,2.53,205.56,205.52,119.06]
[1759086702585,2.53,205.56,205.54,4.3768]
[1759086702783,2.53,205.56,205.54,12.2468]
[1759086710894,2.53,205.56,205.54,4.3768]
[1759086711095,2.53,205.56,205.54,12.2468]
[1759086711795,2.53,205.56,205.55,7.87]
[1759086721804,1.69591658,205.6,205.53,68.0899]
[1759086722001,1.69591658,205.6,205.54,7.95]
[1759086722305,7.89,205.62,205.54,7.95]
[1759086723001,7.89,205.62,205.59,4.3759]
[1759086723203,4.74709329,205.61,205.59,4.3759]
[1759086723399,0.49636822,205.67,205.61,4.3756]
[1759086723598,6.44252499,205.66,205.61,4.3756]
[1759086723799,7.89,205.64,205.61,12.3256]
[1759086723994,4.74660841,205.63,205.61,12.3256]
[1759086724198,7.89,205.64,205.61,12.3256]
[1759086724402,4.74765041,205.63,205.61,12.3256]
[1759086724702,7.89,205.66,205.59,68.0717]
[1759086725007,4.74666453,205.65,205.6,7.95]
[1759086725195,9.58591658,205.69,205.62,7.95]
[1759086725401,7.89,205.64,205.61,119.06]
[1759086725597,7.89,205.62,205.61,119.06]
[1759086725903,7.89,205.62,205.57,12.3264]
[1759086726198,1.69591658,205.63,205.58,119.04]
[1759086726398,7.89,205.61,205.58,119.04]
[1759086726806,7.89,205.61,205.58,126.99]
[1759086727502,7.89,205.61,205.59,4.376]
[1759086727805,7.89,205.63,205.58,119.04]
[1759086728098,3.52916559,205.62,205.58,119.04]
[1759086728300,7.89,205.66,205.6,7.95]
[1759086728904,7.89,205.66,205.63,4.375]
[1759086729107,1.69591658,205.7,205.62,119.04]
[1759086729311,12.63360223,205.69,205.63,7.95]
[1759086729604,11.41824548,205.68,205.62,126.99]
[1759086729800,7.89,205.68,205.62,126.99]
[1759086729998,7.89,205.68,205.62,131.3653]
[1759086730195,6.4379472,205.67,205.62,4.3753]
[1759086730407,4.74203062,205.66,205.62,4.3753]
[1759086730706,4.74209726,205.65,205.62,4.3753]
[1759086730904,7.89,205.63,205.62,4.3753]
[1759086731510,7.63,205.62,205.59,4.3758]
[1759086731698,1.69591658,205.63,205.59,4.3758]
[1759086732100,1.69591658,205.61,205.57,123.4164]
[1759086732301,7.63,205.6,205.57,123.4164]
[1759086732699,7.63,205.6,205.55,11.6668]
[1759086732898,7.63,205.6,205.55,126.31]
[1759086733099,1.69591658,205.61,205.55,126.31]
[1759086733295,9.32591658,205.61,205.55,126.31]
[1759086734199,9.32591658,205.61,205.55,119.02]
[1759086734200,1.69591658,205.61,205.55,119.02]
[1759086734605,1.69591658,205.61,205.55,126.31]
[1759086735102,1.69591658,205.61,205.58,4.3761]
[1759086735299,7.63,205.6,205.55,126.31]
[1759086736002,9.32591658,205.61,205.55,126.31]
[1759086736307,7.63,205.6,205.57,4.3763]
[1759086738297,1.69591658,205.61,205.58,11.666]
[1759086738708,9.32591658,205.61,205.58,11.666]
[1759086738900,1.69591658,205.61,205.58,4.376]
[1759086739096,7.63,205.6,205.58,4.376]
[1759086740411,7.63,205.6,205.56,4.3766]
[1759086740900,1.69591658,205.61,205.56,11.6666]
[1759086741400,7.63,205.6,205.56,11.6666]
[1759086741805,1.69591658,205.61,205.56,11.6666]
[1759086742005,7.63,205.6,205.56,11.6666]
[1759086742201,1.69591658,205.61,205.56,11.6666]
[1759086742603,1.69591658,205.62,205.57,7.29]
[1759086742803,9.32591658,205.62,205.58,7.29]
[1759086743004,1.69591658,205.62,205.58,7.29]
[1759086743305,7.63,205.61,205.58,7.29]
[1759086744712,7.63,205.61,205.58,11.666]
[1759086747108,7.63,205.61,205.59,4.3759]
[1759086747913,7.51,205.66,205.58,7.94]
[1759086748112,4.7441195,205.65,205.59,119.04]
[1759086748417,3.52857158,205.64,205.6,7.94]
[1759086748615,7.51,205.66,205.59,119.04]
[1759086748616,3.52857158,205.63,205.59,119.04]
[1759086748816,7.51,205.66,205.6,7.94]
[1759086749015,7.51,205.64,205.6,7.94]
[1759086749410,1.69591658,205.66,205.6,4.3757]
[1759086749713,7.51,205.61,205.55,126.96]
[1759086749912,7.51,205.59,205.55,126.96]
[1759086750106,7.51,205.59,205.55,119.02]
[1759086750310,7.51,205.59,205.56,7.94]
[1759086750714,7.51,205.59,205.57,4.3763]
[1759086751709,1.69591658,205.62,205.58,4.376]
[1759086751911,11.03953634,205.61,205.58,4.376]
[1759086752112,7.51,205.61,205.58,4.376]
[1759086752312,1.69591658,205.62,205.58,4.376]
[1759086752513,7.51,205.6,205.58,4.376]
[1759086753319,1.69591658,205.62,205.58,4.376]
[1759086753518,4.7457235,205.61,205.55,119.02]
[1759086753716,7.51,205.59,205.55,126.96]
[1759086754620,7.51,205.59,205.56,7.94]
[1759086755726,7.51,205.59,205.57,4.3763]
[1759086758222,7.51,205.58,205.57,4.3763]
[1759086758525,11.03704609,205.58,205.57,4.3763]
[1759086759425,11.03683771,205.58,205.57,4.3763]
[1759086759624,4.375,205.65,205.57,12.3163]
[1759086759826,7.51,205.63,205.57,12.3163]
[1759086760025,7.51,205.61,205.57,12.3163]
[1759086760228,12.25243974,205.6,205.57,12.3163]
[1759086760429,11.03668947,205.59,205.57,4.3763]
[1759086760626,7.51,205.64,205.57,4.3763]
[1759086760925,4.74252911,205.63,205.57,4.3763]
[1759086761119,7.51,205.61,205.57,4.3763]
[1759086761322,7.51,205.59,205.57,4.3763]
[1759086763119,8.09197061,205.66,205.55,123.3968]
[1759086763422,7.51,205.64,205.55,123.3968]
[1759086763728,10.18508823,205.65,205.55,123.3968]
[1759086763729,7.51,205.62,205.56,4.3766]
[1759086763927,7.51,205.6,205.56,12.3166]
[1759086764124,3.52693853,205.59,205.57,4.3763]
[1759086764322,7.51,205.6,205.57,4.3763]
[1759086764529,11.03627938,205.59,205.57,4.3763]
[1759086764719,7.51,205.59,205.57,4.3763]
[1759086767131,7.51,205.59,205.56,7.94]
[1759086767520,7.51,205.62,205.56,7.94]
[1759086767721,4.74192171,205.61,205.56,7.94]
[1759086767924,4.74192171,205.6,205.55,123.3968]
[1759086768226,7.51,205.58,205.55,123.3968]
[1759086768426,7.51,205.58,205.55,131.3368]
[1759086769339,7.51,205.58,205.56,7.94]
[1759086770021,7.51,205.56,205.53,4.3773]
[1759086770430,2.64965472,205.63,205.52,7.94]
[1759086770730,7.51,205.61,205.52,7.94]
[1759086770933,4.74237943,205.6,205.52,7.94]
[1759086771126,7.51,205.58,205.54,4.377]
[1759086771332,7.51,205.6,205.54,4.377]
[1759086771633,7.51,205.58,205.54,12.317]
[1759086771830,7.51,205.6,205.54,12.317]
[1759086772030,7.51,205.58,205.54,12.317]
[1759086772226,7.51,205.6,205.54,12.317]
[1759086772431,4.74216263,205.59,205.54,12.317]
[1759086772627,7.51,205.57,205.54,12.317]
[1759086773234,7.51,205.6,205.54,4.377]
[1759086773431,7.51,205.58,205.49,7.94]
[1759086773734,4.74230164,205.57,205.49,7.94]
[1759086773933,3.52645931,205.56,205.49,7.94]
[1759086774133,7.51,205.58,205.49,7.94]
[1759086774336,4.74271782,205.57,205.49,7.94]
[1759086774634,3.52679106,205.56,205.51,4.3776]
[1759086774828,7.95,205.55,205.51,12.0376]
[1759086775029,7.95,205.55,205.51,4.3776]
[1759086775228,7.95,205.55,205.51,12.0376]
[1759086775434,7.95,205.55,205.52,7.66]
[1759086776533,12.3262,205.59,205.52,7.66]
[1759086776734,4.74342381,205.58,205.52,7.66]
[1759086776936,3.52749705,205.57,205.49,7.66]
[1759086777136,3.52749705,205.56,205.49,7.66]
[1759086777431,7.95,205.59,205.49,7.66]
[1759086777639,3.52717827,205.58,205.49,7.66]
[1759086777833,3.52717827,205.57,205.49,7.66]
[1759086778034,7.95,205.59,205.49,7.66]
[1759086778236,3.52688261,205.58,205.49,7.66]
[1759086778432,3.52688261,205.57,205.49,7.66]
[1759086778627,7.95,205.59,205.52,12.0374]
[1759086778832,3.5267831,205.58,205.52,12.0374]
[1759086779038,3.5267831,205.57,205.52,4.3774]
[1759086779237,7.95,205.57,205.52,4.3774]
[1759086779537,7.95,205.57,205.53,7.66]
[1759086780539,7.95,205.6,205.53,7.66]
[1759086780738,4.74264943,205.59,205.53,7.66]
[1759086781038,7.95,205.57,205.53,7.66]
[1759086781442,7.95,205.6,205.53,7.66]
[1759086781740,7.95,205.58,205.51,7.66]
[1759086781939,4.74250391,205.57,205.51,7.66]
[1759086782133,3.52666136,205.56,205.49,7.66]
[1759086782443,7.95,205.57,205.49,7.66]
[1759086782648,3.52675445,205.56,205.49,7.66]
[1759086782835,7.95,205.57,205.49,7.66]
[1759086783036,3.52675445,205.56,205.49,7.66]
[1759086783341,7.95,205.57,205.49,7.66]
[1759086783541,3.52661331,205.56,205.53,7.66]
[1759086783839,7.95,205.57,205.52,4.3774]
[1759086784338,7.95,205.57,205.53,4.3772]
[1759086784543,4.3755,205.62,205.54,7.66]
[1759086784740,12.69200523,205.61,205.54,7.66]
[1759086784939,4.74200523,205.6,205.54,7.66]
[1759086785140,4.74200523,205.59,205.54,7.66]
[1759086785342,7.95,205.57,205.54,7.66]
[1759086785745,7.95,205.57,205.54,12.0369]
[1759086786343,7.95,205.57,205.54,4.3769]
[1759086786644,7.95,205.6,205.55,7.66]
[1759086786849,7.95,205.58,205.55,7.66]
[1759086788549,7.95,205.6,205.54,4.3769]
[1759086788748,4.74276889,205.59,205.54,4.3769]
[1759086788947,7.95,205.57,205.54,4.3769]
[1759086789951,68.0575,205.64,205.52,7.66]
[1759086790155,7.95,205.61,205.52,7.66]
[1759086790351,12.3262,205.59,205.52,7.66]
[1759086790552,4.7433943,205.58,205.52,7.66]
[1759086790745,7.95,205.56,205.52,7.66]
[1759086791648,7.95,205.56,205.52,12.0374]
[1759086791847,4.3762,205.59,205.52,12.0374]
[1759086792052,9.12016663,205.58,205.52,12.0374]
[1759086792250,4.74376663,205.57,205.52,12.0374]
[1759086792550,3.52785893,205.56,205.52,12.0374]
[1759086792751,7.63,205.55,205.52,12.0374]
[1759086792946,7.63,205.57,205.5,4.3779]
[1759086793252,3.5280883,205.56,205.5,4.3779]
[1759086793445,7.63,205.56,205.5,4.3779]
[1759086794450,7.63,205.54,205.51,7.41]
[1759086795555,7.63,205.57,205.51,7.41]
[1759086795856,3.53007731,205.56,205.5,4.3779]
[1759086796051,7.63,205.57,205.51,7.41]
[1759086796249,3.52992892,205.56,205.5,11.7879]
[1759086796449,7.63,205.57,205.5,11.7879]
[1759086796650,3.53016736,205.56,205.5,11.7879]
[1759086796843,7.63,205.57,205.5,11.7879]
[1759086797054,3.53009316,205.56,205.5,11.7879]
[1759086797251,7.63,205.57,205.5,11.7879]
[1759086797450,3.53046838,205.56,205.5,11.7879]
[1759086797657,3.53046838,205.55,205.5,4.3779]
[1759086797850,7.63,205.55,205.5,4.3779]
[1759086798353,7.63,205.55,205.51,7.41]
[1759086798554,7.63,205.55,205.5,4.3779]
[1759086798952,7.63,205.55,205.51,7.41]
[1759086799656,7.63,205.55,205.5,4.3779]
[1759086799856,7.63,205.55,205.51,7.41]
[1759086800655,7.63,205.55,205.5,4.3779]
[1759086801254,7.63,205.55,205.51,7.41]
[1759086801459,4.3764,205.58,205.5,11.7879]
[1759086801656,7.63,205.56,205.5,11.7879]
[1759086801857,7.63,205.54,205.5,4.3779]
[1759086802057,7.63,205.54,205.51,7.41]
[1759086802961,7.63,205.57,205.51,7.41]
[1759086803160,7.63,205.55,205.51,7.41]
[1759086803549,7.28,205.57,205.51,7.41]
[1759086803755,7.28,205.55,205.51,7.41]
[1759086803950,7.28,205.55,205.5,4.3779]
[1759086804557,4.3764,205.58,205.51,7.38]
[1759086804762,12.02720357,205.57,205.51,7.38]
[1759086805060,4.74720357,205.56,205.51,7.38]
[1759086805260,10.811277,205.55,205.51,7.38]
[1759086805462,7.28,205.55,205.51,4.3776]
[1759086805663,7.28,205.55,205.52,7.38]
[1759086807961,7.28,205.59,205.52,7.38]
[1759086808161,7.28,205.57,205.53,11.7572]
[1759086808367,2.64965472,205.63,205.53,11.7572]
[1759086808368,10.81174091,205.56,205.53,11.7572]
[1759086808666,7.28,205.56,205.53,11.7572]
[1759086812272,3.53281973,205.55,205.53,11.7572]
[1759086812574,7.28,205.56,205.53,11.7572]
[1759086812775,3.53281973,205.55,205.53,11.7572]
[1759086812976,7.28,205.56,205.53,11.7572]
[1759086813177,10.81281973,205.55,205.53,11.7572]
[1759086813378,7.28,205.55,205.53,11.7572]
[1759086816273,7.28,205.55,205.53,4.3772]
[1759086818381,3.5328845,205.54,205.53,4.3772]
[1759086819879,3.5328845,205.54,205.53,11.7572]
[1759086835088,11.1528845,205.54,205.51,7.62]
[1759086835291,11.1528845,205.53,205.48,101.52]
[1759086835491,1.69639295,205.56,205.48,109.14]
[1759086835691,12.36944543,205.55,205.48,109.14]
[1759086835882,4.74944543,205.54,205.48,109.14]
[1759086836193,11.15340665,205.53,205.48,101.52]
[1759086836391,7.62,205.53,205.49,4.378]
[1759086836693,7.62,205.53,205.5,7.62]
[1759086837089,7.62,205.53,205.5,11.9978]
[1759086838389,7.62,205.55,205.5,11.9978]
[1759086838696,7.62,205.53,205.5,11.9978]
[1759086838995,7.62,205.55,205.5,11.9978]
[1759086839296,7.62,205.53,205.5,11.9978]
[1759086840296,7.62,205.53,205.51,7.62]
[1759086841593,6.07329295,205.56,205.51,7.62]
[1759086841801,1.69639295,205.53,205.48,11.9984]
[1759086841989,7.62,205.51,205.48,4.3784]
[1759086842190,7.62,205.49,205.45,7.62]
[1759086842396,7.62,205.49,205.44,7.62]
[1759086842687,1.69639295,205.5,205.44,7.62]
[1759086842688,7.62,205.47,205.44,7.62]
[1759086842889,7.62,205.49,205.44,7.62]
[1759086843093,7.62,205.46,205.42,11.9996]
[1759086843301,7.62,205.46,205.42,7.62]
[1759086844599,7.62,205.46,205.4,118.92]
[1759086844899,1.69639295,205.44,205.4,118.92]
[1759086845097,7.62,205.43,205.4,126.54]
[1759086845695,1.69639295,205.44,205.4,118.92]
[1759086845895,7.62,205.43,205.37,7.62]
[1759086846090,7.62,205.43,205.39,4.3802]
[1759086846294,7.62,205.43,205.4,7.62]
[1759086847094,1.69639295,205.46,205.41,7.62]
[1759086847299,7.62,205.47,205.41,7.62]
[1759086847599,3.51319114,205.46,205.4,7.62]
[1759086847800,7.62,205.47,205.4,7.62]
[1759086847999,3.51327395,205.46,205.4,7.62]
[1759086848300,7.62,205.47,205.43,4.3793]
[1759086848499,7.62,205.45,205.43,4.3793]
[1759086849195,7.62,205.47,205.43,4.3793]
[1759086849391,3.50992994,205.46,205.43,4.3793]
[1759086849604,1.69639295,205.48,205.43,4.3793]
[1759086849902,7.62,205.46,205.43,11.9993]
[1759086850203,1.69639295,205.47,205.43,4.3793]
[1759086850702,7.62,205.46,205.43,4.3793]
[1759086850901,1.69639295,205.47,205.43,4.3793]
[1759086851099,7.62,205.46,205.43,4.3793]
[1759086851299,7.83,205.46,205.43,4.3793]
[1759086851504,1.69639295,205.47,205.43,4.3793]
[1759086852102,7.83,205.47,205.45,4.379]
[1759086852301,9.52639295,205.5,205.45,4.379]
[1759086852504,9.52639295,205.5,205.46,7.74]
[1759086852703,9.52639295,205.5,205.45,4.379]
[1759086852905,9.52639295,205.5,205.46,7.74]
[1759086853099,7.83,205.49,205.46,7.74]
[1759086855110,1.69639295,205.5,205.46,7.74]
[1759086855408,7.83,205.49,205.46,7.74]
[1759086855909,7.83,205.49,205.45,4.379]
[1759086856104,7.83,205.49,205.43,12.1195]
[1759086856601,1.69639295,205.5,205.43,12.1195]
[1759086856801,3.50477778,205.49,205.43,12.1195]
[1759086857003,7.83,205.49,205.43,12.1195]
[1759086857206,1.69639295,205.5,205.43,12.1195]
[1759086857403,7.83,205.47,205.43,12.1195]
[1759086857603,7.83,205.47,205.41,4.3798]
[1759086862314,9.52639295,205.48,205.42,12.1195]
[1759086863312,7.83,205.48,205.43,4.3793]
[1759086863509,7.83,205.48,205.44,7.74]
[1759086863706,8.42,205.49,205.44,7.74]
[1759086863908,7.67,205.48,205.44,7.74]
[1759086864310,8.42,205.49,205.44,7.74]
[1759086864510,7.67,205.48,205.44,7.74]
[1759086865206,7.67,205.48,205.44,7.51]
[1759086865416,7.67,205.48,205.43,4.3793]
[1759086865610,7.67,205.48,205.44,7.51]
[1759086866008,7.67,205.48,205.43,4.3793]
[1759086866204,7.67,205.48,205.44,7.51]
[1759086867313,7.67,205.48,205.43,4.3793]
[1759086867518,7.67,205.48,205.44,7.51]
[1759086867704,7.67,205.48,205.43,4.3793]
[1759086868110,7.67,205.48,205.45,7.51]
[1759086869813,8.42,205.49,205.45,7.51]
[1759086870015,7.67,205.48,205.45,7.51]
[1759086871514,8.42,205.49,205.45,7.51]
[1759086871716,7.67,205.48,205.45,7.51]
[1759086873317,8.42,205.49,205.44,7.51]
[1759086874017,8.42,205.49,205.46,7.51]
[1759086874220,8.42,205.49,205.45,1.69639295]
[1759086874414,8.42,205.49,205.46,7.51]
[1759086874615,8.42,205.49,205.48,7.51]
[1759086877925,7.67,205.54,205.48,7.51]
[1759086878128,7.67,205.56,205.49,1.69639295]
[1759086878321,0.55123528,205.57,205.48,7.51]
[1759086878322,7.67,205.54,205.48,7.51]
[1759086879218,7.67,205.54,205.5,4.3778]
[1759086879414,7.67,205.56,205.5,4.3778]
[1759086879721,7.67,205.54,205.5,11.8878]
[1759086880215,7.67,205.54,205.5,4.3778]
[1759086880421,7.67,205.54,205.51,7.51]
[1759086884223,7.67,205.54,205.51,11.8876]
[1759086886432,7.67,205.54,205.52,7.51]
[1759086889131,8.42,205.55,205.53,7.51]
[1759086889927,8.42,205.55,205.52,4.3774]
[1759086890129,8.42,205.55,205.54,7.51]
[1759086892130,16.09,205.55,205.53,4.3772]
[1759086892329,8.42,205.55,205.53,11.8872]
[1759086892536,8.42,205.55,205.54,7.51]
[1759086895731,7.5,205.56,205.54,7.51]
[1759086896135,0.55123528,205.57,205.51,4.3777]
[1759086896438,11.01209929,205.56,205.51,4.3777]
[1759086896627,7.5,205.56,205.51,4.3777]
[1759086897227,7.5,205.54,205.51,4.3777]
[1759086897438,7.5,205.56,205.51,4.3777]
[1759086897638,7.5,205.54,205.49,4.3781]
[1759086898038,3.51309501,205.53,205.47,4.3785]
[1759086898338,7.5,205.52,205.47,4.3785]
[1759086898632,30.32210929,205.57,205.47,4.3785]
[1759086898838,12.22965185,205.56,205.47,4.3785]
[1759086899032,7.5,205.54,205.47,4.3785]
[1759086899336,7.5,205.52,205.47,4.3785]
[1759086899531,8.43,205.53,205.47,4.3785]
[1759086899737,7.5,205.52,205.47,4.3785]
[1759086899926,7.5,205.52,205.46,68.1153]
[1759086900130,7.5,205.52,205.47,7.46]
[1759086900329,15.93,205.53,205.45,7.46]
[1759086900734,7.5,205.51,205.45,7.46]
[1759086902640,12.8075,205.53,205.46,4.3788]
[1759086902834,12.23067419,205.52,205.46,4.3788]
[1759086903039,3.51427609,205.51,205.46,4.3788]
[1759086903240,1.21639833,205.52,205.46,4.3788]
[1759086903536,3.51460914,205.51,205.46,4.3788]
[1759086903838,3.51467048,205.5,205.44,4.3792]
[1759086904040,3.51470131,205.49,205.44,4.3792]
[1759086904236,7.5,205.51,205.44,4.3792]
[1759086904540,4.73172839,205.5,205.44,11.8392]
[1759086904743,3.51533006,205.49,205.44,11.8392]
[1759086904932,7.5,205.51,205.45,4.3789]
[1759086905132,3.51532044,205.5,205.45,11.8389]
[1759086905337,3.51532044,205.49,205.45,4.3789]
[1759086905636,1.21648951,205.52,205.45,4.3789]
[1759086905637,7.5,205.5,205.45,4.3789]
[1759086905841,3.5158506,205.49,205.45,4.3789]
[1759086906038,7.5,205.51,205.45,4.3789]
[1759086906241,4.73653033,205.5,205.45,4.3789]
[1759086906442,7.5,205.48,205.45,4.3789]
[1759086906647,7.5,205.52,205.45,4.3789]
[1759086906842,7.5,205.5,205.45,4.3789]
[1759086907041,12.8075,205.53,205.45,11.8389]
[1759086907042,7.5,205.48,205.45,11.8389]
[1759086907345,7.5,205.52,205.45,4.3789]
[1759086907540,7.5,205.5,205.45,4.3789]
[1759086907746,7.5,205.48,205.45,4.3789]
[1759086907946,7.5,205.48,205.46,7.46]
[1759086908247,7.5,205.52,205.45,4.3789]
[1759086908451,7.5,205.5,205.45,4.3789]
[1759086908644,3.52122659,205.49,205.45,4.3789]
[1759086908845,11.02122659,205.48,205.45,4.3789]
[1759086909149,7.5,205.48,205.45,11.8389]
[1759086911747,4.3778,205.52,205.46,7.46]
[1759086911951,4.7379724,205.51,205.45,4.3789]
[1759086912156,7.36,205.49,205.47,11.6686]
[1759086912453,3.52147479,205.48,205.47,11.6686]
[1759086913451,10.88147479,205.48,205.46,7.29]
[1759086913752,7.36,205.48,205.46,7.29]
[1759086916352,12.8075,205.53,205.46,4.3786]
[1759086916547,12.09833783,205.52,205.47,7.29]
[1759086916754,12.09833783,205.51,205.46,4.3786]
[1759086916948,3.52184045,205.5,205.46,4.3786]
[1759086917252,12.8075,205.53,205.47,7.29]
[1759086917452,4.73801221,205.52,205.47,7.29]
[1759086917652,3.52162891,205.51,205.46,7.29]
[1759086917852,8.43,205.53,205.46,7.29]
[1759086918050,3.52132131,205.52,205.46,7.29]
[1759086918242,3.52132131,205.51,205.45,68.1178]
[1759086918446,8.5763208,205.52,205.46,7.29]
[1759086918652,3.52173494,205.51,205.46,7.29]
[1759086918855,8.43,205.53,205.48,4.3784]
[1759086919055,4.73798249,205.52,205.48,4.3784]
[1759086919253,7.36,205.5,205.48,4.3784]
[1759086919448,7.36,205.5,205.48,11.6684]
[1759086919647,7.36,205.52,205.48,11.6684]
[1759086919842,3.52181829,205.51,205.48,11.6684]
[1759086920147,7.36,205.51,205.48,11.6684]
[1759086920543,7.36,205.52,205.48,11.6684]
[1759086920743,10.88182442,205.51,205.48,11.6684]
[1759086920949,7.36,205.51,205.48,11.6684]
[1759086921653,7.36,205.51,205.48,4.3784]
[1759086921850,7.36,205.51,205.49,7.29]
[1759086923055,7.36,205.52,205.45,7.29]
[1759086923254,3.52167351,205.51,205.45,7.29]
[1759086923453,7.36,205.52,205.46,4.3787]
[1759086923649,8.43,205.53,205.45,7.29]
[1759086923650,4.73824959,205.51,205.45,7.29]
[1759086923850,3.52185156,205.5,205.45,7.29]
[1759086924053,8.02,205.51,205.45,7.29]
[1759086924256,8.02,205.49,205.46,7.34]
[1759086924454,8.02,205.52,205.46,7.34]
[1759086924658,8.02,205.5,205.46,7.34]
[1759086924856,8.02,205.51,205.46,7.34]
[1759086925160,3.52211755,205.5,205.46,7.34]
[1759086925354,1.21639847,205.51,205.46,7.34]
[1759086925660,8.02,205.49,205.46,7.34]
[1759086926659,8.02,205.49,205.41,68.1316]
[1759086926660,8.43,205.53,205.43,68.1252]
[1759086926858,4.7387073,205.52,205.46,7.34]
[1759086927052,8.43,205.53,205.46,2.65087401]
[1759086927252,8.43,205.53,205.47,7.34]
[1759086928560,8.43,205.53,205.5,4.378]
[1759086928757,8.43,205.53,205.5,11.718]
[1759086929254,8.43,205.53,205.51,7.34]
[1759086931663,16.45,205.53,205.51,7.34]
[1759086932063,8.02,205.52,205.48,11.7184]
[1759086932262,8.43,205.53,205.48,11.7184]
[1759086932465,8.02,205.51,205.48,11.7184]
[1759086933261,8.02,205.51,205.49,7.34]
[1759086934063,8.02,205.52,205.48,4.3784]
[1759086934262,3.52351021,205.51,205.48,4.3784]
[1759086934464,8.43,205.53,205.48,4.3784]
[1759086934669,4.74013138,205.52,205.48,4.3784]
[1759086934870,11.54381724,205.51,205.47,7.34]
[1759086935068,8.02,205.52,205.47,7.34]
[1759086935264,8.02,205.5,205.47,7.34]
[1759086938471,3.52441641,205.49,205.43,7.34]
[1759086938676,8.02,205.47,205.43,7.34]
[1759086939070,8.02,205.47,205.42,4.3796]
[1759086939374,8.02,205.47,205.43,7.34]
[1759086939565,8.02,205.47,205.42,4.3796]
[1759086939766,8.02,205.47,205.43,7.34]
[1759086940377,8.02,205.47,205.42,4.3796]